[Event "January 9 Early 2024"]
[Site "https://www.chess.com"]
[Date "2024.01.11"]
[Round "4"]
[White "Costachi, Mihnea"]
[Black "Van Foreest, Jorden"]
[Result "1-0"]
[Board "220"]
[TimeControl "180+1"]
[WhiteFideId "1217518"]
[BlackFideId "1039784"]
[WhiteElo "2872"]
[BlackElo "3012"]
[WhiteTeam "ROU"]
[BlackTeam "NED"]
[WhiteClock "0:00:04"]
[BlackClock "0:00:02"]

1. Nc3 {[%clk 0:03:00]}  d5 {[%clk 0:02:56]} 2. d4 {[%clk 0:03:00]}  c5 {[%clk 0:02:55]} 3. e4 {[%clk 0:02:57]}  dxe4 {[%clk 0:02:50]} 4. Bb5+ {[%clk 0:02:53]}  Bd7 {[%clk 0:02:46]} 5. dxc5 {[%clk 0:02:53]}  Nf6 {[%clk 0:02:44]} 6. Be3 {[%clk 0:02:48]}  a6 {[%clk 0:02:33]} 7. Bxd7+ {[%clk 0:02:41]}  Nbxd7 {[%clk 0:02:31]} 8. b4 {[%clk 0:02:41]}  g6 {[%clk 0:02:28]} 9. Nge2 {[%clk 0:02:40]}  Bg7 {[%clk 0:02:26]} 10. O-O {[%clk 0:02:41]}  O-O {[%clk 0:02:25]} 11. Rb1 {[%clk 0:02:26]}  Qc7 {[%clk 0:02:22]} 12. Nd5 {[%clk 0:02:22]}  Nxd5 {[%clk 0:02:20]} 13. Qxd5 {[%clk 0:02:23]}  Nf6 {[%clk 0:02:20]} 14. Qc4 {[%clk 0:02:21]}  Rad8 {[%clk 0:01:57]} 15. a4 {[%clk 0:02:12]}  Ng4 {[%clk 0:01:40]} 16. Bf4 {[%clk 0:02:02]}  e5 {[%clk 0:01:38]} 17. Bg5 {[%clk 0:01:58]}  Bf6 {[%clk 0:01:33]} 18. Bxf6 {[%clk 0:01:42]}  Nxf6 {[%clk 0:01:34]} 19. Rfd1 {[%clk 0:01:41]}  h5 {[%clk 0:01:30]} 20. Nc3 {[%clk 0:01:36]}  Rxd1+ {[%clk 0:01:25]} 21. Rxd1 {[%clk 0:01:35]}  Rd8 {[%clk 0:01:26]} 22. Nd5 {[%clk 0:01:23]}  Nxd5 {[%clk 0:01:23]} 23. Rxd5 {[%clk 0:01:24]}  Rxd5 {[%clk 0:01:03]} 24. Qxd5 {[%clk 0:01:24]}  a5 {[%clk 0:00:54]} 25. b5 {[%clk 0:01:19]}  Qe7 {[%clk 0:00:54]} 26. b6 {[%clk 0:01:07]}  Qg5 {[%clk 0:00:52]} 27. Qd1 {[%clk 0:00:25]}  e3 {[%clk 0:00:50]} 28. c6 {[%clk 0:00:18]}  Qf6 {[%clk 0:00:49]} 29. cxb7 {[%clk 0:00:04]}  Qxf2+ {[%clk 0:00:48]} 30. Kh1 {[%clk 0:00:05]}  e2 {[%clk 0:00:49]} 31. b8=Q+ {[%clk 0:00:05]}  Kh7 {[%clk 0:00:49]} 32. Qxe2 {[%clk 0:00:01]}  Qxe2 {[%clk 0:00:50]} 33. h3 {[%clk 0:00:01]}  Qf1+ {[%clk 0:00:43]} 34. Kh2 {[%clk 0:00:02]}  Qf4+ {[%clk 0:00:37]} 35. Kh1 {[%clk 0:00:03]}  Qf1+ {[%clk 0:00:21]} 36. Kh2 {[%clk 0:00:04]}  e4 {[%clk 0:00:17]} 37. b7 {[%clk 0:00:04]}  e3 {[%clk 0:00:17]} 38. Qe5 {[%clk 0:00:03]}  f6 {[%clk 0:00:07]} 39. Qe7+ {[%clk 0:00:03]}  Kh6 {[%clk 0:00:08]} 40. b8=Q {[%clk 0:00:03]}  e2 {[%clk 0:00:09]} 41. Qh8+ {[%clk 0:00:03]}  Kg5 {[%clk 0:00:10]} 42. h4+ {[%clk 0:00:01]}  Kg4 {[%clk 0:00:10]} 43. Qhxf6 {[%clk 0:00:02]}  Qxf6 {[%clk 0:00:03]} 44. Qxf6 {[%clk 0:00:03]}  e1=Q {[%clk 0:00:02]} 45. Qg5# {[%clk 0:00:04]} 1-0

[Event "January 9 Early 2024"]
[Site "https://www.chess.com"]
[Date "2024.01.11"]
[Round "4"]
[White "Barbot, Pierre"]
[Black "Von Buelow, Georg"]
[Result "0-1"]
[Board "222"]
[TimeControl "180+1"]
[WhiteFideId "663727"]
[BlackFideId "4620658"]
[WhiteElo "2289"]
[BlackElo "2120"]
[WhiteTeam "FRA"]
[BlackTeam "GER"]
[WhiteClock "0:00:05"]
[BlackClock "0:00:08"]

1. d4 {[%clk 0:02:59]}  Nf6 {[%clk 0:02:56]} 2. Nf3 {[%clk 0:02:59]}  d5 {[%clk 0:02:56]} 3. Bf4 {[%clk 0:03:00]}  c5 {[%clk 0:02:56]} 4. e3 {[%clk 0:03:00]}  Nc6 {[%clk 0:02:56]} 5. Nbd2 {[%clk 0:03:00]}  cxd4 {[%clk 0:02:55]} 6. exd4 {[%clk 0:02:59]}  Qb6 {[%clk 0:02:55]} 7. Nb3 {[%clk 0:02:52]}  g6 {[%clk 0:02:53]} 8. c3 {[%clk 0:02:03]}  Bg7 {[%clk 0:02:47]} 9. Bd3 {[%clk 0:02:03]}  O-O {[%clk 0:02:47]} 10. O-O {[%clk 0:02:04]}  Re8 {[%clk 0:02:33]} 11. h3 {[%clk 0:01:57]}  e6 {[%clk 0:02:31]} 12. a4 {[%clk 0:01:42]}  a6 {[%clk 0:02:28]} 13. a5 {[%clk 0:01:40]}  Qd8 {[%clk 0:02:28]} 14. Nc5 {[%clk 0:01:37]}  Nd7 {[%clk 0:02:25]} 15. Bd6 {[%clk 0:01:08]}  Nxc5 {[%clk 0:02:23]} 16. Bxc5 {[%clk 0:01:08]}  Nxa5 {[%clk 0:02:21]} 17. b4 {[%clk 0:00:56]}  Nc6 {[%clk 0:02:17]} 18. b5 {[%clk 0:00:55]}  Nb8 {[%clk 0:02:09]} 19. b6 {[%clk 0:00:26]}  Nd7 {[%clk 0:02:05]} 20. Qb3 {[%clk 0:00:26]}  Nxc5 {[%clk 0:01:54]} 21. dxc5 {[%clk 0:00:27]}  Bd7 {[%clk 0:01:55]} 22. Rad1 {[%clk 0:00:25]}  Qc8 {[%clk 0:01:54]} 23. Qa3 {[%clk 0:00:22]}  Bf8 {[%clk 0:01:53]} 24. c4 {[%clk 0:00:17]}  Bxc5 {[%clk 0:01:48]} 25. Qb3 {[%clk 0:00:17]}  Bc6 {[%clk 0:01:32]} 26. Ne5 {[%clk 0:00:14]}  Bf8 {[%clk 0:01:24]} 27. Nxc6 {[%clk 0:00:09]}  Qxc6 {[%clk 0:01:24]} 28. cxd5 {[%clk 0:00:09]}  exd5 {[%clk 0:01:25]} 29. Rd2 {[%clk 0:00:04]}  Rac8 {[%clk 0:01:13]} 30. Be2 {[%clk 0:00:04]}  Red8 {[%clk 0:01:07]} 31. Bf3 {[%clk 0:00:03]}  Qc3 {[%clk 0:00:51]} 32. Qxc3 {[%clk 0:00:03]}  Rxc3 {[%clk 0:00:51]} 33. Rxd5 {[%clk 0:00:03]}  Be7 {[%clk 0:00:19]} 34. Rfd1 {[%clk 0:00:03]}  Rxd5 {[%clk 0:00:19]} 35. Bxd5 {[%clk 0:00:04]}  Bc5 {[%clk 0:00:13]} 36. Bxb7 {[%clk 0:00:03]}  Bxb6 {[%clk 0:00:14]} 37. Bxa6 {[%clk 0:00:04]}  Kg7 {[%clk 0:00:13]} 38. Kf1 {[%clk 0:00:04]}  Rc2 {[%clk 0:00:13]} 39. Be2 {[%clk 0:00:04]}  Bc5 {[%clk 0:00:13]} 40. f3 {[%clk 0:00:04]}  h5 {[%clk 0:00:13]} 41. g4 {[%clk 0:00:05]}  h4 {[%clk 0:00:12]} 42. f4 {[%clk 0:00:05]}  Be3 {[%clk 0:00:09]} 43. Rd3 {[%clk 0:00:05]}  Bxf4 {[%clk 0:00:08]} 44. Bf3 {[%clk 0:00:05]}  Bg3 {[%clk 0:00:07]} 45. Bg2 {[%clk 0:00:05]}  Rf2+ {[%clk 0:00:07]} 46. Kg1 {[%clk 0:00:05]}  Re2 {[%clk 0:00:08]} 47. Kf1 {[%clk 0:00:05]}  Re1# {[%clk 0:00:08]} 0-1

[Event "January 9 Early 2024"]
[Site "https://www.chess.com"]
[Date "2024.01.11"]
[Round "4"]
[White "Kokoszczynski, Jan"]
[Black "Tymrakiewicz, Rafal"]
[Result "1-0"]
[Board "224"]
[TimeControl "180+1"]
[WhiteFideId "1174460"]
[BlackFideId "1108832"]
[WhiteElo "2570"]
[BlackElo "2386"]
[WhiteTeam "POL"]
[BlackTeam "POL"]
[WhiteClock "0:00:01"]
[BlackClock "0:00:01"]

1. d4 {[%clk 0:02:59]}  d5 {[%clk 0:02:40]} 2. Nf3 {[%clk 0:02:58]}  Bf5 {[%clk 0:02:39]} 3. Bf4 {[%clk 0:02:58]}  e6 {[%clk 0:02:38]} 4. e3 {[%clk 0:02:58]}  c5 {[%clk 0:02:38]} 5. Nbd2 {[%clk 0:02:58]}  Nc6 {[%clk 0:02:39]} 6. c3 {[%clk 0:02:57]}  h6 {[%clk 0:02:38]} 7. Bb5 {[%clk 0:02:57]}  Nf6 {[%clk 0:02:38]} 8. Qa4 {[%clk 0:02:57]}  Rc8 {[%clk 0:02:31]} 9. Ne5 {[%clk 0:02:57]}  Qb6 {[%clk 0:02:31]} 10. O-O {[%clk 0:02:41]}  Be7 {[%clk 0:02:30]} 11. h3 {[%clk 0:02:13]}  O-O {[%clk 0:02:29]} 12. Rac1 {[%clk 0:02:09]}  a6 {[%clk 0:02:19]} 13. Bxc6 {[%clk 0:02:01]}  bxc6 {[%clk 0:02:18]} 14. b3 {[%clk 0:02:00]}  Qb5 {[%clk 0:01:58]} 15. Qa3 {[%clk 0:01:50]}  Rfe8 {[%clk 0:01:57]} 16. Qb2 {[%clk 0:01:37]}  c4 {[%clk 0:01:50]} 17. Qa1 {[%clk 0:01:32]}  cxb3 {[%clk 0:01:46]} 18. axb3 {[%clk 0:01:32]}  Ne4 {[%clk 0:01:28]} 19. c4 {[%clk 0:01:02]}  Qb7 {[%clk 0:01:24]} 20. Nxe4 {[%clk 0:00:56]}  Bxe4 {[%clk 0:01:25]} 21. c5 {[%clk 0:00:49]}  Ra8 {[%clk 0:00:59]} 22. Qc3 {[%clk 0:00:49]}  f6 {[%clk 0:00:42]} 23. Nf3 {[%clk 0:00:48]}  Bxf3 {[%clk 0:00:43]} 24. gxf3 {[%clk 0:00:49]}  Bf8 {[%clk 0:00:43]} 25. Bg3 {[%clk 0:00:47]}  Qf7 {[%clk 0:00:33]} 26. Ra1 {[%clk 0:00:47]}  Qh5 {[%clk 0:00:33]} 27. Ra4 {[%clk 0:00:41]}  Qxh3 {[%clk 0:00:27]} 28. Rfa1 {[%clk 0:00:39]}  e5 {[%clk 0:00:24]} 29. Rxa6 {[%clk 0:00:36]}  Rxa6 {[%clk 0:00:24]} 30. Rxa6 {[%clk 0:00:36]}  Re6 {[%clk 0:00:24]} 31. b4 {[%clk 0:00:29]}  h5 {[%clk 0:00:22]} 32. b5 {[%clk 0:00:13]}  h4 {[%clk 0:00:22]} 33. Bh2 {[%clk 0:00:13]}  f5 {[%clk 0:00:22]} 34. Rxc6 {[%clk 0:00:10]}  Rxc6 {[%clk 0:00:11]} 35. bxc6 {[%clk 0:00:11]}  f4 {[%clk 0:00:11]} 36. c7 {[%clk 0:00:09]}  g5 {[%clk 0:00:08]} 37. dxe5 {[%clk 0:00:07]}  Qf5 {[%clk 0:00:06]} 38. e6 {[%clk 0:00:06]}  h3 {[%clk 0:00:04]} 39. Qe1 {[%clk 0:00:04]}  fxe3 {[%clk 0:00:03]} 40. c8=Q {[%clk 0:00:03]}  Qxf3 {[%clk 0:00:01]} 41. Qf1 {[%clk 0:00:02]}  e2 {[%clk 0:00:02]} 42. Qxf8+ {[%clk 0:00:01]}  Kxf8 {[%clk 0:00:01]} 43. e7+ {[%clk 0:00:02]}  Ke8 {[%clk 0:00:01]} 44. Qxh3 {[%clk 0:00:01]} 1-0

[Event "January 9 Early 2024"]
[Site "https://www.chess.com"]
[Date "2024.01.11"]
[Round "4"]
[White "Pogorelskikh, Sofia"]
[Black "Alexanian, Nelli"]
[Result "1-0"]
[Board "226"]
[TimeControl "180+1"]
[WhiteFideId "44164548"]
[BlackFideId "4170539"]
[WhiteElo "2279"]
[BlackElo "1944"]
[WhiteTeam "SRB"]
[BlackTeam "TUR"]
[WhiteClock "0:00:03"]
[BlackClock "0:00:01"]

1. e4 {[%clk 0:03:00]}  e6 {[%clk 0:01:57]} 2. d4 {[%clk 0:02:57]}  d5 {[%clk 0:01:56]} 3. Nc3 {[%clk 0:02:56]}  Bb4 {[%clk 0:01:54]} 4. e5 {[%clk 0:02:49]}  c5 {[%clk 0:01:53]} 5. a3 {[%clk 0:02:45]}  Bxc3+ {[%clk 0:01:50]} 6. bxc3 {[%clk 0:02:45]}  Ne7 {[%clk 0:01:50]} 7. a4 {[%clk 0:02:32]}  Qa5 {[%clk 0:01:47]} 8. Bd2 {[%clk 0:02:07]}  Nbc6 {[%clk 0:01:44]} 9. Qg4 {[%clk 0:02:03]}  Bd7 {[%clk 0:01:32]} 10. Nf3 {[%clk 0:01:58]}  O-O-O {[%clk 0:01:31]} 11. dxc5 {[%clk 0:01:49]}  Qxc5 {[%clk 0:01:27]} 12. Bd3 {[%clk 0:01:47]}  f6 {[%clk 0:01:22]} 13. Qxg7 {[%clk 0:01:22]}  Rhg8 {[%clk 0:01:16]} 14. Qxf6 {[%clk 0:01:20]}  Rxg2 {[%clk 0:01:15]} 15. Be3 {[%clk 0:00:41]}  Qxc3+ {[%clk 0:01:13]} 16. Ke2 {[%clk 0:00:41]}  d4 {[%clk 0:01:05]} 17. Bd2 {[%clk 0:00:40]}  Qc5 {[%clk 0:01:04]} 18. Rhg1 {[%clk 0:00:39]}  Rdg8 {[%clk 0:00:49]} 19. Bxh7 {[%clk 0:00:34]}  Nd5 {[%clk 0:00:44]} 20. Qf7 {[%clk 0:00:17]}  Qc4+ {[%clk 0:00:42]} 21. Bd3 {[%clk 0:00:16]}  Nc3+ {[%clk 0:00:41]} 22. Bxc3 {[%clk 0:00:16]}  Qxc3 {[%clk 0:00:39]} 23. Rxg2 {[%clk 0:00:14]}  Rxg2 {[%clk 0:00:37]} 24. Qf8+ {[%clk 0:00:14]}  Nd8 {[%clk 0:00:35]} 25. Rd1 {[%clk 0:00:07]}  Bc6 {[%clk 0:00:34]} 26. Nd2 {[%clk 0:00:04]}  b5 {[%clk 0:00:19]} 27. axb5 {[%clk 0:00:03]}  Bd5 {[%clk 0:00:15]} 28. Rb1 {[%clk 0:00:01]}  Rxf2+ {[%clk 0:00:13]} 29. Qxf2 {[%clk 0:00:01]}  Qc5 {[%clk 0:00:09]} 30. Qg3 {[%clk 0:00:01]}  Qe7 {[%clk 0:00:09]} 31. Rg1 {[%clk 0:00:01]}  Qf7 {[%clk 0:00:08]} 32. Qf2 {[%clk 0:00:01]}  Qh5+ {[%clk 0:00:07]} 33. Ke1 {[%clk 0:00:01]}  Qxe5+ {[%clk 0:00:02]} 34. Kf1 {[%clk 0:00:02]}  Qh5 {[%clk 0:00:01]} 35. Ne4 {[%clk 0:00:01]}  Qd1+ {[%clk 0:00:01]} 36. Kg2 {[%clk 0:00:02]}  Qg4+ {[%clk 0:00:01]} 37. Kh1 {[%clk 0:00:02]}  Bxe4+ {[%clk 0:00:01]} 38. Bxe4 {[%clk 0:00:03]} 1-0

[Event "January 9 Early 2024"]
[Site "https://www.chess.com"]
[Date "2024.01.11"]
[Round "4"]
[White "Manukian, Artak"]
[Black "Javakhadze, Zurab"]
[Result "1-0"]
[Board "227"]
[TimeControl "180+1"]
[WhiteFideId "13301373"]
[BlackFideId "13603647"]
[WhiteElo "2504"]
[BlackElo "2686"]
[WhiteTeam "ARM"]
[BlackTeam "GEO"]
[WhiteClock "0:00:05"]
[BlackClock "0:00:04"]

1. e4 {[%clk 0:03:00]}  e5 {[%clk 0:02:56]} 2. Nf3 {[%clk 0:02:57]}  Nc6 {[%clk 0:02:56]} 3. d4 {[%clk 0:02:56]}  exd4 {[%clk 0:02:56]} 4. Nxd4 {[%clk 0:02:57]}  Nf6 {[%clk 0:02:56]} 5. Nxc6 {[%clk 0:02:53]}  bxc6 {[%clk 0:02:57]} 6. e5 {[%clk 0:02:53]}  Qe7 {[%clk 0:02:57]} 7. Qe2 {[%clk 0:02:52]}  Nd5 {[%clk 0:02:58]} 8. c4 {[%clk 0:02:53]}  Ba6 {[%clk 0:02:57]} 9. b3 {[%clk 0:02:50]}  g6 {[%clk 0:02:57]} 10. g3 {[%clk 0:02:49]}  Bg7 {[%clk 0:02:57]} 11. Bb2 {[%clk 0:02:47]}  O-O {[%clk 0:02:55]} 12. Bg2 {[%clk 0:02:41]}  Rae8 {[%clk 0:02:54]} 13. O-O {[%clk 0:02:41]}  Bxe5 {[%clk 0:02:52]} 14. Qxe5 {[%clk 0:02:42]}  Qxe5 {[%clk 0:02:52]} 15. Bxe5 {[%clk 0:02:43]}  Rxe5 {[%clk 0:02:53]} 16. cxd5 {[%clk 0:02:43]}  Bxf1 {[%clk 0:02:53]} 17. Kxf1 {[%clk 0:02:44]}  cxd5 {[%clk 0:02:53]} 18. Nc3 {[%clk 0:02:45]}  c6 {[%clk 0:02:53]} 19. Rc1 {[%clk 0:02:46]}  Ra8 {[%clk 0:02:52]} 20. Na4 {[%clk 0:02:46]}  Kf8 {[%clk 0:02:48]} 21. Nc5 {[%clk 0:02:43]}  Ke8 {[%clk 0:02:27]} 22. f4 {[%clk 0:02:17]}  Re7 {[%clk 0:02:26]} 23. Kf2 {[%clk 0:02:09]}  Kd8 {[%clk 0:02:22]} 24. Nd3 {[%clk 0:02:02]}  a5 {[%clk 0:02:17]} 25. Rc5 {[%clk 0:01:55]}  a4 {[%clk 0:02:13]} 26. b4 {[%clk 0:01:55]}  a3 {[%clk 0:02:02]} 27. Rc3 {[%clk 0:01:28]}  Re8 {[%clk 0:01:25]} 28. b5 {[%clk 0:01:26]}  Re6 {[%clk 0:01:00]} 29. Nc5 {[%clk 0:01:11]}  Rf6 {[%clk 0:00:59]} 30. b6 {[%clk 0:01:01]}  Rb8 {[%clk 0:00:55]} 31. Rb3 {[%clk 0:00:53]}  d6 {[%clk 0:00:53]} 32. Nd3 {[%clk 0:00:29]}  Re6 {[%clk 0:00:48]} 33. Ne1 {[%clk 0:00:20]}  Re7 {[%clk 0:00:41]} 34. Nc2 {[%clk 0:00:16]}  Reb7 {[%clk 0:00:39]} 35. Rxa3 {[%clk 0:00:14]}  Rxb6 {[%clk 0:00:39]} 36. Nd4 {[%clk 0:00:14]}  c5 {[%clk 0:00:29]} 37. Nb3 {[%clk 0:00:12]}  d4 {[%clk 0:00:26]} 38. Bd5 {[%clk 0:00:11]}  Rb4 {[%clk 0:00:17]} 39. Ra7 {[%clk 0:00:10]}  d3 {[%clk 0:00:16]} 40. Ke3 {[%clk 0:00:09]}  c4 {[%clk 0:00:16]} 41. Nd4 {[%clk 0:00:09]}  Rb2 {[%clk 0:00:05]} 42. Nc6+ {[%clk 0:00:08]}  Ke8 {[%clk 0:00:05]} 43. Nxb8 {[%clk 0:00:05]}  Re2+ {[%clk 0:00:04]} 44. Kf3 {[%clk 0:00:06]}  Re1 {[%clk 0:00:04]} 45. Bxc4 {[%clk 0:00:05]}  d2 {[%clk 0:00:04]} 46. Bb3 {[%clk 0:00:05]}  Rb1 {[%clk 0:00:03]} 47. Ke2 {[%clk 0:00:05]}  Rxb3 {[%clk 0:00:04]} 48. axb3 {[%clk 0:00:05]} 1-0

[Event "January 9 Early 2024"]
[Site "https://www.chess.com"]
[Date "2024.01.11"]
[Round "4"]
[White "Korol, Dimitry"]
[Black "Boldoo, Erdenepurev"]
[Result "0-1"]
[Board "228"]
[TimeControl "180+1"]
[WhiteFideId "14108003"]
[BlackFideId "4901037"]
[WhiteElo "2339"]
[BlackElo "2558"]
[WhiteTeam "UKR"]
[BlackTeam "MGL"]
[WhiteClock "0:00:03"]
[BlackClock "0:00:11"]

1. d4 {[%clk 0:03:00]}  Nf6 {[%clk 0:02:59]} 2. c4 {[%clk 0:03:01]}  g6 {[%clk 0:02:59]} 3. Nc3 {[%clk 0:03:01]}  Bg7 {[%clk 0:02:59]} 4. e4 {[%clk 0:03:01]}  d6 {[%clk 0:03:00]} 5. Nf3 {[%clk 0:03:02]}  O-O {[%clk 0:03:00]} 6. Be2 {[%clk 0:03:03]}  e5 {[%clk 0:03:01]} 7. dxe5 {[%clk 0:03:04]}  dxe5 {[%clk 0:03:01]} 8. Qxd8 {[%clk 0:03:05]}  Rxd8 {[%clk 0:03:01]} 9. Bg5 {[%clk 0:03:05]}  Re8 {[%clk 0:03:00]} 10. O-O-O {[%clk 0:03:05]}  c6 {[%clk 0:02:59]} 11. Nxe5 {[%clk 0:03:04]}  Na6 {[%clk 0:02:44]} 12. Rd6 {[%clk 0:03:03]}  Be6 {[%clk 0:02:37]} 13. f4 {[%clk 0:03:02]}  h6 {[%clk 0:02:33]} 14. Bh4 {[%clk 0:03:00]}  Nc5 {[%clk 0:02:31]} 15. Bf3 {[%clk 0:03:00]}  g5 {[%clk 0:02:02]} 16. Bf2 {[%clk 0:02:59]}  Na6 {[%clk 0:01:55]} 17. g3 {[%clk 0:03:00]}  gxf4 {[%clk 0:01:51]} 18. gxf4 {[%clk 0:03:01]}  Kh7 {[%clk 0:01:51]} 19. Rhd1 {[%clk 0:01:30]}  h5 {[%clk 0:01:35]} 20. Kc2 {[%clk 0:00:58]}  Ng4 {[%clk 0:01:31]} 21. Nxg4 {[%clk 0:00:50]}  hxg4 {[%clk 0:01:31]} 22. Be2 {[%clk 0:00:46]}  Nb4+ {[%clk 0:01:20]} 23. Kb3 {[%clk 0:00:42]}  a5 {[%clk 0:01:20]} 24. a3 {[%clk 0:00:42]}  Na6 {[%clk 0:01:17]} 25. Kc2 {[%clk 0:00:16]}  Bf8 {[%clk 0:00:58]} 26. R6d2 {[%clk 0:00:16]}  f5 {[%clk 0:00:56]} 27. e5 {[%clk 0:00:15]}  Be7 {[%clk 0:00:55]} 28. Na4 {[%clk 0:00:13]}  Kg6 {[%clk 0:00:53]} 29. Nb6 {[%clk 0:00:13]}  Rad8 {[%clk 0:00:53]} 30. Rxd8 {[%clk 0:00:12]}  Rxd8 {[%clk 0:00:54]} 31. Rxd8 {[%clk 0:00:11]}  Bxd8 {[%clk 0:00:55]} 32. Kc3 {[%clk 0:00:10]}  Nc7 {[%clk 0:00:50]} 33. b4 {[%clk 0:00:08]}  axb4+ {[%clk 0:00:50]} 34. axb4 {[%clk 0:00:09]}  Be7 {[%clk 0:00:51]} 35. c5 {[%clk 0:00:09]}  Kf7 {[%clk 0:00:49]} 36. Be3 {[%clk 0:00:08]}  Bd5 {[%clk 0:00:49]} 37. Bc4 {[%clk 0:00:07]}  Ke6 {[%clk 0:00:49]} 38. Kd4 {[%clk 0:00:07]}  Bxc4 {[%clk 0:00:49]} 39. Kxc4 {[%clk 0:00:07]}  Bd8 {[%clk 0:00:46]} 40. Bf2 {[%clk 0:00:07]}  Ne8 {[%clk 0:00:46]} 41. Nc8 {[%clk 0:00:07]}  Nc7 {[%clk 0:00:25]} 42. Nd6 {[%clk 0:00:06]}  Kd7 {[%clk 0:00:25]} 43. Nxf5 {[%clk 0:00:05]}  Ne6 {[%clk 0:00:24]} 44. Be3 {[%clk 0:00:05]}  Nc7 {[%clk 0:00:11]} 45. Nd6 {[%clk 0:00:04]}  Nd5 {[%clk 0:00:12]} 46. Bd2 {[%clk 0:00:04]}  b5+ {[%clk 0:00:11]} 47. Kb3 {[%clk 0:00:03]}  Ke6 {[%clk 0:00:11]} 0-1

[Event "January 9 Early 2024"]
[Site "https://www.chess.com"]
[Date "2024.01.11"]
[Round "4"]
[White "Halkias, Stelios"]
[Black "Khamdamova, Afruza"]
[Result "1-0"]
[Board "233"]
[TimeControl "180+1"]
[WhiteFideId "4201809"]
[BlackFideId "14210444"]
[WhiteElo "2730"]
[BlackElo "2536"]
[WhiteTeam "GRE"]
[BlackTeam "UZB"]
[WhiteClock "0:00:13"]
[BlackClock "0:00:03"]

1. d4 {[%clk 0:03:00]}  Nf6 {[%clk 0:02:58]} 2. Nf3 {[%clk 0:03:01]}  d5 {[%clk 0:02:58]} 3. c4 {[%clk 0:03:00]}  e6 {[%clk 0:02:58]} 4. g3 {[%clk 0:02:58]}  dxc4 {[%clk 0:02:57]} 5. Bg2 {[%clk 0:02:58]}  c5 {[%clk 0:02:57]} 6. O-O {[%clk 0:02:57]}  Nc6 {[%clk 0:02:57]} 7. Ne5 {[%clk 0:02:55]}  Bd7 {[%clk 0:02:55]} 8. Nxc4 {[%clk 0:02:55]}  cxd4 {[%clk 0:02:53]} 9. Bf4 {[%clk 0:02:54]}  Bc5 {[%clk 0:01:45]} 10. Nd6+ {[%clk 0:02:51]}  Bxd6 {[%clk 0:01:42]} 11. Bxd6 {[%clk 0:02:51]}  e5 {[%clk 0:01:35]} 12. Nd2 {[%clk 0:02:47]}  Be6 {[%clk 0:01:17]} 13. Bxc6+ {[%clk 0:01:53]}  bxc6 {[%clk 0:01:17]} 14. Bxe5 {[%clk 0:01:54]}  O-O {[%clk 0:01:17]} 15. Bxf6 {[%clk 0:01:38]}  Qxf6 {[%clk 0:01:15]} 16. Rc1 {[%clk 0:01:37]}  Bh3 {[%clk 0:01:01]} 17. Re1 {[%clk 0:01:34]}  Rad8 {[%clk 0:01:00]} 18. Ne4 {[%clk 0:01:29]}  Qg6 {[%clk 0:00:58]} 19. f3 {[%clk 0:01:26]}  f5 {[%clk 0:00:55]} 20. Nc5 {[%clk 0:01:16]}  f4 {[%clk 0:00:54]} 21. Kf2 {[%clk 0:01:01]}  fxg3+ {[%clk 0:00:49]} 22. hxg3 {[%clk 0:00:59]}  Rd5 {[%clk 0:00:44]} 23. Qd3 {[%clk 0:00:54]}  Bf5 {[%clk 0:00:40]} 24. Qc4 {[%clk 0:00:54]}  Kh8 {[%clk 0:00:38]} 25. Rcd1 {[%clk 0:00:52]}  Qh6 {[%clk 0:00:29]} 26. Rh1 {[%clk 0:00:41]}  Qe3+ {[%clk 0:00:28]} 27. Kf1 {[%clk 0:00:22]}  d3 {[%clk 0:00:25]} 28. Nxd3 {[%clk 0:00:20]}  Bxd3 {[%clk 0:00:25]} 29. Rxd3 {[%clk 0:00:20]}  Rxf3+ {[%clk 0:00:23]} 30. exf3 {[%clk 0:00:17]}  Rxd3 {[%clk 0:00:23]} 31. Qe4 {[%clk 0:00:14]}  Rd1+ {[%clk 0:00:18]} 32. Kg2 {[%clk 0:00:14]}  Rd2+ {[%clk 0:00:18]} 33. Kh3 {[%clk 0:00:11]}  Qh6+ {[%clk 0:00:18]} 34. Kg4 {[%clk 0:00:11]}  Rd8 {[%clk 0:00:02]} 35. Rxh6 {[%clk 0:00:10]}  gxh6 {[%clk 0:00:02]} 36. Qe5+ {[%clk 0:00:10]}  Kg8 {[%clk 0:00:03]} 37. Qe6+ {[%clk 0:00:11]}  Kf8 {[%clk 0:00:03]} 38. Qf6+ {[%clk 0:00:11]}  Ke8 {[%clk 0:00:03]} 39. Qh8+ {[%clk 0:00:11]}  Kd7 {[%clk 0:00:03]} 40. Qxh7+ {[%clk 0:00:12]}  Kc8 {[%clk 0:00:03]} 41. Qxa7 {[%clk 0:00:12]}  Rg8+ {[%clk 0:00:03]} 42. Kh3 {[%clk 0:00:13]}  Rf8 {[%clk 0:00:03]} 43. Qa8+ {[%clk 0:00:13]} 1-0

[Event "January 9 Early 2024"]
[Site "https://www.chess.com"]
[Date "2024.01.11"]
[Round "4"]
[White "Wu, Derek"]
[Black "Cardozo Munar, Carlos Eduardo"]
[Result "1-0"]
[Board "234"]
[TimeControl "180+1"]
[WhiteFideId "30914558"]
[BlackFideId "4409477"]
[WhiteElo "2657"]
[BlackElo "2223"]
[WhiteTeam "USA"]
[BlackTeam "COL"]
[WhiteClock "0:00:24"]
[BlackClock "0:00:01"]

1. e4 {[%clk 0:03:00]}  e6 {[%clk 0:02:59]} 2. d4 {[%clk 0:02:58]}  d5 {[%clk 0:02:58]} 3. Nd2 {[%clk 0:02:57]}  c5 {[%clk 0:02:57]} 4. Ngf3 {[%clk 0:02:52]}  Nc6 {[%clk 0:02:57]} 5. c3 {[%clk 0:02:51]}  Nf6 {[%clk 0:02:56]} 6. Bd3 {[%clk 0:02:51]}  Be7 {[%clk 0:02:54]} 7. O-O {[%clk 0:02:49]}  dxe4 {[%clk 0:02:54]} 8. Nxe4 {[%clk 0:02:50]}  Nxe4 {[%clk 0:02:52]} 9. Bxe4 {[%clk 0:02:51]}  cxd4 {[%clk 0:02:51]} 10. cxd4 {[%clk 0:02:52]}  Bf6 {[%clk 0:02:48]} 11. d5 {[%clk 0:02:50]}  exd5 {[%clk 0:02:44]} 12. Bxd5 {[%clk 0:02:48]}  O-O {[%clk 0:02:42]} 13. h3 {[%clk 0:02:46]}  Bf5 {[%clk 0:02:40]} 14. Re1 {[%clk 0:02:41]}  Qd7 {[%clk 0:02:21]} 15. Bxc6 {[%clk 0:02:02]}  Qxc6 {[%clk 0:02:18]} 16. Nd4 {[%clk 0:01:59]}  Qd5 {[%clk 0:02:04]} 17. Nxf5 {[%clk 0:01:59]}  Qxf5 {[%clk 0:02:05]} 18. Qb3 {[%clk 0:02:00]}  b5 {[%clk 0:01:54]} 19. Be3 {[%clk 0:01:59]}  a6 {[%clk 0:01:53]} 20. Rac1 {[%clk 0:01:54]}  Rac8 {[%clk 0:01:51]} 21. Qa3 {[%clk 0:01:43]}  h6 {[%clk 0:01:45]} 22. Rxc8 {[%clk 0:01:33]}  Rxc8 {[%clk 0:01:43]} 23. Qxa6 {[%clk 0:01:33]}  Bxb2 {[%clk 0:01:41]} 24. g4 {[%clk 0:01:27]}  Qd7 {[%clk 0:01:27]} 25. Rb1 {[%clk 0:01:25]}  Rc2 {[%clk 0:00:47]} 26. Qa8+ {[%clk 0:01:23]}  Rc8 {[%clk 0:00:45]} 27. Qe4 {[%clk 0:01:09]}  Bf6 {[%clk 0:00:42]} 28. Qf3 {[%clk 0:00:55]}  Qd3 {[%clk 0:00:30]} 29. Rd1 {[%clk 0:00:53]}  Qc3 {[%clk 0:00:19]} 30. Rc1 {[%clk 0:00:44]}  Qxc1+ {[%clk 0:00:18]} 31. Bxc1 {[%clk 0:00:45]}  Rxc1+ {[%clk 0:00:18]} 32. Kg2 {[%clk 0:00:46]}  Rc4 {[%clk 0:00:16]} 33. Qa8+ {[%clk 0:00:45]}  Kh7 {[%clk 0:00:16]} 34. Qd5 {[%clk 0:00:45]}  Rb4 {[%clk 0:00:13]} 35. Qxf7 {[%clk 0:00:45]}  Rb2 {[%clk 0:00:11]} 36. Qd5 {[%clk 0:00:44]}  b4 {[%clk 0:00:11]} 37. Qe4+ {[%clk 0:00:40]}  Kg8 {[%clk 0:00:10]} 38. Kg3 {[%clk 0:00:37]}  Kf8 {[%clk 0:00:04]} 39. Qa8+ {[%clk 0:00:33]}  Kf7 {[%clk 0:00:04]} 40. Qd5+ {[%clk 0:00:33]}  Kf8 {[%clk 0:00:03]} 41. h4 {[%clk 0:00:33]}  Bc3 {[%clk 0:00:03]} 42. Qc5+ {[%clk 0:00:29]}  Kg8 {[%clk 0:00:02]} 43. Qc8+ {[%clk 0:00:26]}  Kh7 {[%clk 0:00:02]} 44. Qf5+ {[%clk 0:00:27]}  Kh8 {[%clk 0:00:02]} 45. g5 {[%clk 0:00:25]}  hxg5 {[%clk 0:00:01]} 46. hxg5 {[%clk 0:00:24]}  Rxa2 {[%clk 0:00:01]} 47. Qh3+ {[%clk 0:00:23]}  Kg8 {[%clk 0:00:01]} 48. Qe6+ {[%clk 0:00:24]} 1-0